[Event "*** SCC Grand Prix: Titled Tuesday Blitz"]
[Site "Chess.com"]
[Date "2020.09.08"]
[Round "3"]
[White "Happy1712Drummer"]
[Black "uthoang"]
[Result "0-1"]
[WhiteElo "2405"]
[BlackElo "2243"]
[TimeControl "180+1"]
[EndTime "10:30:21 PDT"]
[Termination "uthoang won on time"]

1. Nf3 {[%clk 0:03:00.9]} 1... Nf6 {[%clk 0:02:59.8]} 2. d4 {[%clk 0:03:00.3]}
2... e6 {[%clk 0:02:59.7]} 3. c4 {[%clk 0:02:58.9]} 3... Be7 {[%clk 0:02:59.8]}
4. Nc3 {[%clk 0:02:57.5]} 4... b6 {[%clk 0:02:59.3]} 5. e4 {[%clk 0:02:54.9]}
5... Bb7 {[%clk 0:02:58.2]} 6. e5 {[%clk 0:02:54.9]} 6... Ne4 {[%clk 0:02:57.4]}
7. Bd3 {[%clk 0:02:54.7]} 7... Nxc3 {[%clk 0:02:53.6]} 8. bxc3 {[%clk
0:02:55.6]} 8... c5 {[%clk 0:02:48.8]} 9. O-O {[%clk 0:02:53.4]} 9... h6 {[%clk
0:02:42.1]} 10. Qe2 {[%clk 0:02:52.2]} 10... O-O {[%clk 0:02:41.2]} 11. Nd2
{[%clk 0:02:29.4]} 11... d6 {[%clk 0:02:30.7]} 12. exd6 {[%clk 0:01:58.1]} 12...
Bxd6 {[%clk 0:02:22.1]} 13. Ne4 {[%clk 0:01:56.7]} 13... Bc7 {[%clk 0:02:01.7]}
14. dxc5 {[%clk 0:01:51.7]} 14... bxc5 {[%clk 0:02:02]} 15. Nxc5 {[%clk
0:01:45]} 15... Qd6 {[%clk 0:02:01.3]} 16. Qh5 {[%clk 0:01:25.6]} 16... Bc6
{[%clk 0:01:32.2]} 17. Rd1 {[%clk 0:01:19.7]} 17... Qe5 {[%clk 0:01:25.7]} 18.
Qxe5 {[%clk 0:01:10.1]} 18... Bxe5 {[%clk 0:01:26.6]} 19. Rb1 {[%clk 0:00:55.3]}
19... a5 {[%clk 0:00:59.6]} 20. Be3 {[%clk 0:00:51]} 20... Bxc3 {[%clk 0:00:52]}
21. Be4 {[%clk 0:00:21.7]} 21... Bb4 {[%clk 0:00:43]} 22. a3 {[%clk 0:00:18.8]}
22... Bxc5 {[%clk 0:00:42.2]} 23. Bxc5 {[%clk 0:00:18.2]} 23... Re8 {[%clk
0:00:40.2]} 24. Rxb8 {[%clk 0:00:15.7]} 24... Bxe4 {[%clk 0:00:38.5]} 25. Rxe8+
{[%clk 0:00:11.4]} 25... Rxe8 {[%clk 0:00:38.3]} 26. Bb6 {[%clk 0:00:12]} 26...
a4 {[%clk 0:00:37.7]} 27. c5 {[%clk 0:00:11.3]} 27... Bd5 {[%clk 0:00:36.5]} 28.
Rc1 {[%clk 0:00:10.6]} 28... Rc8 {[%clk 0:00:36.4]} 29. f3 {[%clk 0:00:10.7]}
29... Kf8 {[%clk 0:00:36.8]} 30. Kf2 {[%clk 0:00:11.2]} 30... Ke8 {[%clk
0:00:37.3]} 31. Ke3 {[%clk 0:00:11.9]} 31... Kd7 {[%clk 0:00:37.8]} 32. g3
{[%clk 0:00:12]} 32... Kc6 {[%clk 0:00:38.2]} 33. f4 {[%clk 0:00:12.2]} 33... g5
{[%clk 0:00:37.9]} 34. Kd4 {[%clk 0:00:11.8]} 34... gxf4 {[%clk 0:00:35.8]} 35.
gxf4 {[%clk 0:00:12.7]} 35... Rg8 {[%clk 0:00:36]} 36. Ke5 {[%clk 0:00:12.3]}
36... Rg2 {[%clk 0:00:34.4]} 37. Rc3 {[%clk 0:00:09.5]} 37... Re2+ {[%clk
0:00:33]} 38. Kf6 {[%clk 0:00:08.5]} 38... Rf2 {[%clk 0:00:33.3]} 39. Kxf7
{[%clk 0:00:07.8]} 39... Rxf4+ {[%clk 0:00:33.4]} 40. Ke7 {[%clk 0:00:08.2]}
40... e5 {[%clk 0:00:29.5]} 41. Rg3 {[%clk 0:00:07.4]} 41... Rf7+ {[%clk
0:00:28.3]} 42. Ke8 {[%clk 0:00:07.5]} 42... Rf6 {[%clk 0:00:27.1]} 43. Ke7
{[%clk 0:00:05.9]} 43... Re6+ {[%clk 0:00:27.5]} 44. Kd8 {[%clk 0:00:05.9]}
44... e4 {[%clk 0:00:28.4]} 45. Re3 {[%clk 0:00:05]} 45... Rf6 {[%clk
0:00:27.4]} 46. h4 {[%clk 0:00:04.9]} 46... Rf3 {[%clk 0:00:27.4]} 47. Re1
{[%clk 0:00:03.5]} 47... e3 {[%clk 0:00:27.8]} 48. Ba5 {[%clk 0:00:03.1]} 48...
Bc4 {[%clk 0:00:27.1]} 49. Rd1 {[%clk 0:00:02.2]} 49... Kxc5 {[%clk 0:00:25.9]}
50. Bb4+ {[%clk 0:00:02.8]} 50... Kb5 {[%clk 0:00:25.7]} 51. Rc1 {[%clk
0:00:02.7]} 51... e2 {[%clk 0:00:25.7]} 52. Re1 {[%clk 0:00:03.4]} 52... Rf1
{[%clk 0:00:25.7]} 53. Ke7 {[%clk 0:00:03.4]} 53... Rf4 {[%clk 0:00:24.2]} 54.
Kd6 {[%clk 0:00:02.6]} 54... Rxh4 {[%clk 0:00:24.3]} 55. Ke5 {[%clk 0:00:02.6]}
55... Rh3 {[%clk 0:00:23.5]} 56. Kf4 {[%clk 0:00:02]} 56... h5 {[%clk 0:00:22]}
57. Kg5 {[%clk 0:00:02.2]} 57... Rb3 {[%clk 0:00:21.2]} 58. Rg1 {[%clk
0:00:01.4]} 58... Rxb4 {[%clk 0:00:21.2]} 59. axb4 {[%clk 0:00:01.1]} 59... Kxb4
{[%clk 0:00:22.1]} 60. Kxh5 {[%clk 0:00:01.3]} 60... Kc3 {[%clk 0:00:22.6]} 0-1

[Event "*** SCC Grand Prix: Titled Tuesday Blitz"]
[Site "Chess.com"]
[Date "2020.09.08"]
[Round "3"]
[White "DarZay"]
[Black "GaboSalazar2001"]
[Result "0-1"]
[WhiteElo "2064"]
[BlackElo "2335"]
[TimeControl "180+1"]
[EndTime "10:30:21 PDT"]
[Termination "GaboSalazar2001 won by resignation"]

1. e4 {[%clk 0:03:00.2]} 1... c5 {[%clk 0:03:00.5]} 2. Nf3 {[%clk 0:02:59.2]}
2... d6 {[%clk 0:03:01.1]} 3. d4 {[%clk 0:02:58.9]} 3... cxd4 {[%clk 0:03:02]}
4. Nxd4 {[%clk 0:02:59.2]} 4... Nf6 {[%clk 0:03:02.7]} 5. Nc3 {[%clk 0:02:58.9]}
5... e6 {[%clk 0:03:03.4]} 6. Be3 {[%clk 0:02:29.4]} 6... a6 {[%clk 0:03:02.7]}
7. Be2 {[%clk 0:02:27.5]} 7... Nbd7 {[%clk 0:03:02.1]} 8. O-O {[%clk 0:02:26.6]}
8... b5 {[%clk 0:03:02.4]} 9. a3 {[%clk 0:02:26.2]} 9... Bb7 {[%clk 0:03:02.4]}
10. f3 {[%clk 0:02:24.1]} 10... Be7 {[%clk 0:03:01.7]} 11. Kh1 {[%clk
0:02:22.1]} 11... O-O {[%clk 0:03:01.7]} 12. Qd2 {[%clk 0:02:21.7]} 12... Rc8
{[%clk 0:03:01.8]} 13. Rad1 {[%clk 0:02:05.6]} 13... d5 {[%clk 0:03:02.2]} 14.
exd5 {[%clk 0:02:03.6]} 14... Nxd5 {[%clk 0:03:03.1]} 15. Nxd5 {[%clk
0:01:59.5]} 15... Bxd5 {[%clk 0:03:04]} 16. f4 {[%clk 0:01:53.8]} 16... Nf6
{[%clk 0:02:56.9]} 17. Bf3 {[%clk 0:01:52.7]} 17... Qc7 {[%clk 0:02:35.1]} 18.
Bxd5 {[%clk 0:01:50.8]} 18... Nxd5 {[%clk 0:02:36]} 19. f5 {[%clk 0:01:39.7]}
19... Nxe3 {[%clk 0:01:57.3]} 20. Qxe3 {[%clk 0:01:38.9]} 20... e5 {[%clk
0:01:44.8]} 21. f6 {[%clk 0:01:24.4]} 21... exd4 {[%clk 0:01:16]} 22. Qxe7
{[%clk 0:01:20.4]} 22... Qxe7 {[%clk 0:01:02.4]} 23. fxe7 {[%clk 0:01:20]} 23...
Rfe8 {[%clk 0:01:03]} 24. Rxd4 {[%clk 0:01:19.6]} 24... Rxe7 {[%clk 0:00:48.6]}
25. Rfd1 {[%clk 0:01:11.7]} 25... f6 {[%clk 0:00:46.7]} 26. Rd8+ {[%clk
0:01:05.4]} 26... Rxd8 {[%clk 0:00:46.6]} 27. Rxd8+ {[%clk 0:01:05.5]} 27... Kf7
{[%clk 0:00:47.4]} 28. Kg1 {[%clk 0:01:03]} 28... Re2 {[%clk 0:00:47.2]} 29. Rc8
{[%clk 0:01:00.4]} 29... Ke6 {[%clk 0:00:28.8]} 30. Rc6+ {[%clk 0:00:59.6]}
30... Kd5 {[%clk 0:00:23.2]} 31. Rxa6 {[%clk 0:00:57.5]} 31... Rxc2 {[%clk
0:00:23.8]} 32. b4 {[%clk 0:00:57.2]} 32... g6 {[%clk 0:00:11.3]} 33. Rxf6
{[%clk 0:00:53.8]} 33... Ra2 {[%clk 0:00:11.2]} 34. Rf3 {[%clk 0:00:53.1]} 34...
g5 {[%clk 0:00:08.7]} 35. h3 {[%clk 0:00:51.2]} 35... Ke4 {[%clk 0:00:08.6]} 36.
Rc3 {[%clk 0:00:48]} 36... h5 {[%clk 0:00:08]} 37. Rc5 {[%clk 0:00:45.9]} 37...
Rxa3 {[%clk 0:00:07.9]} 38. Rxg5 {[%clk 0:00:42.5]} 38... h4 {[%clk 0:00:08.3]}
39. Rxb5 {[%clk 0:00:41.5]} 39... Rb3 {[%clk 0:00:05]} 40. Rb8 {[%clk 0:00:41]}
40... Kf4 {[%clk 0:00:05.2]} 41. Rh8 {[%clk 0:00:38.3]} 41... Kg3 {[%clk
0:00:04.2]} 42. Rg8+ {[%clk 0:00:37.7]} 42... Kf4 {[%clk 0:00:04.7]} 43. Rg4+
{[%clk 0:00:36.5]} 43... Kf5 {[%clk 0:00:04.4]} 44. Rxh4 {[%clk 0:00:36.3]}
44... Rb2 {[%clk 0:00:04]} 45. Rc4 {[%clk 0:00:35.7]} 45... Rd2 {[%clk
0:00:03.8]} 46. g4+ {[%clk 0:00:35.7]} 46... Kg5 {[%clk 0:00:04.2]} 47. b5
{[%clk 0:00:34.7]} 47... Kh4 {[%clk 0:00:04.5]} 48. Rc3 {[%clk 0:00:34]} 48...
Rb2 {[%clk 0:00:03]} 49. Kf1 {[%clk 0:00:28.9]} 49... Rxb5 {[%clk 0:00:02.7]}
50. Kf2 {[%clk 0:00:29]} 50... Rb2+ {[%clk 0:00:01.6]} 51. Ke1 {[%clk
0:00:26.9]} 51... Rg2 {[%clk 0:00:01.4]} 52. Kf1 {[%clk 0:00:24.9]} 52... Ra2
{[%clk 0:00:01.9]} 53. Rf3 {[%clk 0:00:22.2]} 53... Rb2 {[%clk 0:00:01.9]} 54.
Rf2 {[%clk 0:00:21.1]} 54... Rb3 {[%clk 0:00:02.6]} 55. Rh2 {[%clk 0:00:19.7]}
55... Kg3 {[%clk 0:00:03.5]} 56. Rh1 {[%clk 0:00:15.7]} 56... Rb1+ {[%clk
0:00:04]} 57. Ke2 {[%clk 0:00:15.4]} 57... Rxh1 {[%clk 0:00:04.9]} 58. g5 {[%clk
0:00:14.9]} 58... Rxh3 {[%clk 0:00:05.4]} 0-1

[Event "*** SCC Grand Prix: Titled Tuesday Blitz"]
[Site "Chess.com"]
[Date "2020.09.08"]
[Round "3"]
[White "Onischuk_V"]
[Black "PavelShkapenko"]
[Result "1-0"]
[WhiteElo "2961"]
[BlackElo "2685"]
[TimeControl "180+1"]
[EndTime "10:30:22 PDT"]
[Termination "Onischuk_V won by resignation"]

1. e4 {[%clk 0:02:59.5]} 1... c5 {[%clk 0:03:00.1]} 2. Nc3 {[%clk 0:02:59.5]}
2... e6 {[%clk 0:02:59.8]} 3. Nf3 {[%clk 0:02:54.9]} 3... Nc6 {[%clk 0:02:59.3]}
4. g3 {[%clk 0:02:54]} 4... Nf6 {[%clk 0:02:57.6]} 5. Bg2 {[%clk 0:02:52.8]}
5... d5 {[%clk 0:02:57.1]} 6. exd5 {[%clk 0:02:51]} 6... Nxd5 {[%clk 0:02:57.6]}
7. O-O {[%clk 0:02:47.3]} 7... Be7 {[%clk 0:02:54.7]} 8. d4 {[%clk 0:02:47.2]}
8... Nxc3 {[%clk 0:02:53.9]} 9. bxc3 {[%clk 0:02:46.9]} 9... O-O {[%clk
0:02:54.3]} 10. Rb1 {[%clk 0:02:46.6]} 10... Qa5 {[%clk 0:02:46]} 11. Qd3 {[%clk
0:02:43.9]} 11... Rd8 {[%clk 0:02:14.6]} 12. Bg5 {[%clk 0:02:37.6]} 12... Qc7
{[%clk 0:02:09.7]} 13. Rfe1 {[%clk 0:02:30.1]} 13... h6 {[%clk 0:01:59.4]} 14.
Bf4 {[%clk 0:02:29.6]} 14... Bd6 {[%clk 0:01:59.6]} 15. Bxd6 {[%clk 0:02:25.7]}
15... Qxd6 {[%clk 0:01:59.5]} 16. Red1 {[%clk 0:02:16.8]} 16... Qe7 {[%clk
0:01:54.8]} 17. Qb5 {[%clk 0:02:13.6]} 17... cxd4 {[%clk 0:01:54]} 18. cxd4
{[%clk 0:02:13.6]} 18... Rb8 {[%clk 0:01:52.6]} 19. Ne5 {[%clk 0:02:05.1]} 19...
Nxe5 {[%clk 0:01:45.8]} 20. Qxe5 {[%clk 0:02:04.6]} 20... Bd7 {[%clk 0:01:44.8]}
21. Bxb7 {[%clk 0:01:57.2]} 21... Ba4 {[%clk 0:01:40]} 22. Be4 {[%clk
0:01:57.1]} 22... Rbc8 {[%clk 0:01:29]} 23. Rd2 {[%clk 0:01:54.2]} 23... Qc7
{[%clk 0:01:26]} 24. Qxc7 {[%clk 0:01:50.8]} 24... Rxc7 {[%clk 0:01:26]} 25. Rb4
{[%clk 0:01:45]} 25... Bc6 {[%clk 0:01:17.9]} 26. Rc4 {[%clk 0:01:33.5]} 26...
Rdc8 {[%clk 0:01:17.5]} 27. Rxc6 {[%clk 0:01:32]} 27... Rxc6 {[%clk 0:01:17.7]}
28. Bxc6 {[%clk 0:01:32.7]} 28... Rxc6 {[%clk 0:01:18.3]} 29. Kf1 {[%clk
0:01:33]} 29... Rc4 {[%clk 0:01:16.1]} 30. Ke2 {[%clk 0:01:32.3]} 30... Ra4
{[%clk 0:01:16.2]} 31. c3 {[%clk 0:01:32.6]} 31... Kf8 {[%clk 0:01:15.6]} 32.
Kd3 {[%clk 0:01:32.5]} 32... Ke7 {[%clk 0:01:16.3]} 33. Kc2 {[%clk 0:01:28.6]}
33... Ra6 {[%clk 0:01:14.5]} 34. Kb3 {[%clk 0:01:28.7]} 34... Rb6+ {[%clk
0:01:14.6]} 35. Ka4 {[%clk 0:01:26.7]} 35... Kd6 {[%clk 0:01:08.7]} 36. c4
{[%clk 0:01:26.2]} 36... Rb1 {[%clk 0:01:09.2]} 37. Ka5 {[%clk 0:01:22.7]} 37...
Kc6 {[%clk 0:01:09.1]} 38. d5+ {[%clk 0:01:20.1]} 38... exd5 {[%clk 0:01:08.3]}
39. cxd5+ {[%clk 0:01:20.3]} 39... Kd6 {[%clk 0:01:04.4]} 40. Ka6 {[%clk
0:01:20.1]} 40... g5 {[%clk 0:01:02]} 41. Kxa7 {[%clk 0:01:18.5]} 41... Rh1
{[%clk 0:01:02.5]} 42. f3 {[%clk 0:00:52.1]} 42... Rf1 {[%clk 0:01:02.2]} 43. a4
{[%clk 0:00:45.1]} 43... Rxf3 {[%clk 0:01:00]} 44. a5 {[%clk 0:00:45.1]} 44...
f5 {[%clk 0:00:40.9]} 45. a6 {[%clk 0:00:45.2]} 45... f4 {[%clk 0:00:40.8]} 46.
gxf4 {[%clk 0:00:44.8]} 46... gxf4 {[%clk 0:00:36.2]} 47. Ka8 {[%clk 0:00:30.8]}
47... Rb3 {[%clk 0:00:33.7]} 48. a7 {[%clk 0:00:29.2]} 48... f3 {[%clk
0:00:29.7]} 49. h3 {[%clk 0:00:28.4]} 49... h5 {[%clk 0:00:28.9]} 50. h4 {[%clk
0:00:28.6]} 50... Rb4 {[%clk 0:00:26.3]} 51. Rd3 {[%clk 0:00:27]} 51... Rxh4
{[%clk 0:00:19.3]} 52. Rxf3 {[%clk 0:00:23.5]} 52... Rb4 {[%clk 0:00:19.4]} 53.
Rf5 {[%clk 0:00:20.8]} 53... h4 {[%clk 0:00:19.3]} 54. Rh5 {[%clk 0:00:19.8]}
54... h3 {[%clk 0:00:19.5]} 55. Rxh3 {[%clk 0:00:17.8]} 55... Kxd5 {[%clk
0:00:19.7]} 56. Rc3 {[%clk 0:00:17.1]} 56... Kd6 {[%clk 0:00:19.4]} 57. Rc8
{[%clk 0:00:17.3]} 57... Kd7 {[%clk 0:00:16.6]} 58. Rb8 {[%clk 0:00:17.1]} 58...
Ra4 {[%clk 0:00:16.9]} 59. Kb7 {[%clk 0:00:17.1]} 59... Rb4+ {[%clk 0:00:17]}
60. Ka6 {[%clk 0:00:16.5]} 60... Ra4+ {[%clk 0:00:17.3]} 61. Kb6 {[%clk
0:00:16.8]} 1-0

[Event "*** SCC Grand Prix: Titled Tuesday Blitz"]
[Site "Chess.com"]
[Date "2020.09.08"]
[Round "3"]
[White "TigrVShlyape"]
[Black "GothamChess"]
[Result "1-0"]
[WhiteElo "2815"]
[BlackElo "2571"]
[TimeControl "180+1"]
[EndTime "10:30:22 PDT"]
[Termination "TigrVShlyape won by resignation"]

1. d4 {[%clk 0:03:00.9]} 1... f5 {[%clk 0:02:59.9]} 2. Nf3 {[%clk 0:02:59.8]}
2... Nf6 {[%clk 0:03:00.1]} 3. Bf4 {[%clk 0:02:57.3]} 3... b6 {[%clk 0:02:57.1]}
4. e3 {[%clk 0:02:57.2]} 4... Bb7 {[%clk 0:02:57.4]} 5. h3 {[%clk 0:02:57]} 5...
e6 {[%clk 0:02:56.6]} 6. Be2 {[%clk 0:02:56.7]} 6... g6 {[%clk 0:02:55.7]} 7.
O-O {[%clk 0:02:41.6]} 7... Bg7 {[%clk 0:02:55.3]} 8. c4 {[%clk 0:02:42.1]} 8...
O-O {[%clk 0:02:53.8]} 9. Nc3 {[%clk 0:02:42.6]} 9... h6 {[%clk 0:02:52.1]} 10.
Rc1 {[%clk 0:02:37.3]} 10... d6 {[%clk 0:02:49.5]} 11. Bh2 {[%clk 0:02:32.2]}
11... Ne4 {[%clk 0:02:44.9]} 12. Nxe4 {[%clk 0:02:30.9]} 12... Bxe4 {[%clk
0:02:45.8]} 13. Nd2 {[%clk 0:02:29.6]} 13... Bb7 {[%clk 0:02:35.2]} 14. b4
{[%clk 0:02:25.4]} 14... e5 {[%clk 0:02:32.4]} 15. dxe5 {[%clk 0:02:19.5]} 15...
dxe5 {[%clk 0:02:31.7]} 16. c5 {[%clk 0:02:19.2]} 16... Kh7 {[%clk 0:02:23.8]}
17. Bf3 {[%clk 0:02:15.7]} 17... e4 {[%clk 0:02:09.2]} 18. Be2 {[%clk
0:02:10.1]} 18... bxc5 {[%clk 0:02:04.9]} 19. Rxc5 {[%clk 0:02:04.3]} 19... Na6
{[%clk 0:02:04.6]} 20. Bxa6 {[%clk 0:02:02.2]} 20... Bxa6 {[%clk 0:02:04.8]} 21.
b5 {[%clk 0:02:02.2]} 21... Bc8 {[%clk 0:01:52.9]} 22. Nb3 {[%clk 0:01:55.8]}
22... Be6 {[%clk 0:01:35.9]} 23. Rxc7 {[%clk 0:01:52.5]} 23... Rf7 {[%clk
0:01:06.6]} 24. Rc6 {[%clk 0:01:45.6]} 24... Qe8 {[%clk 0:00:58.1]} 25. Qc2
{[%clk 0:01:40.2]} 25... Bd7 {[%clk 0:00:51]} 26. Rc7 {[%clk 0:00:52.9]} 26...
Bxb5 {[%clk 0:00:50.4]} 27. Rc1 {[%clk 0:00:48.7]} 27... Rd8 {[%clk 0:00:42.5]}
28. Nd4 {[%clk 0:00:43.7]} 28... Ba6 {[%clk 0:00:33.6]} 29. Rxf7 {[%clk
0:00:29.1]} 29... Qxf7 {[%clk 0:00:33.6]} 30. Qa4 {[%clk 0:00:26.1]} 30... Qf6
{[%clk 0:00:10]} 31. Rc6 {[%clk 0:00:19.8]} 31... Rc8 {[%clk 0:00:07.2]} 32.
Rxc8 {[%clk 0:00:18.3]} 32... Bxc8 {[%clk 0:00:07.2]} 33. Qxa7 {[%clk
0:00:18.6]} 33... g5 {[%clk 0:00:04]} 34. Bb8 {[%clk 0:00:17.8]} 34... f4 {[%clk
0:00:03.5]} 35. Qc7 {[%clk 0:00:17]} 35... Ba6 {[%clk 0:00:01.8]} 36. Qd6 {[%clk
0:00:16]} 36... Bc4 {[%clk 0:00:01.6]} 37. Qxf6 {[%clk 0:00:15.8]} 37... Bxf6
{[%clk 0:00:02.5]} 38. a3 {[%clk 0:00:15.4]} 38... Bxd4 {[%clk 0:00:03]} 39.
exd4 {[%clk 0:00:15.5]} 39... Kg6 {[%clk 0:00:03.6]} 40. a4 {[%clk 0:00:14.7]}
40... Kf5 {[%clk 0:00:03.9]} 41. a5 {[%clk 0:00:14.6]} 41... h5 {[%clk
0:00:04.5]} 42. g3 {[%clk 0:00:13.9]} 42... f3 {[%clk 0:00:03.2]} 43. Ba7 {[%clk
0:00:12.2]} 43... Bb5 {[%clk 0:00:02.1]} 44. d5 {[%clk 0:00:12.2]} 44... Ke5
{[%clk 0:00:02.1]} 45. Be3 {[%clk 0:00:13.1]} 45... Kxd5 {[%clk 0:00:02.4]} 46.
Bxg5 {[%clk 0:00:12.9]} 46... Ke6 {[%clk 0:00:03.1]} 47. Be3 {[%clk 0:00:13]}
47... Kf5 {[%clk 0:00:03.6]} 48. Kh2 {[%clk 0:00:12.9]} 48... Ba6 {[%clk
0:00:03.8]} 49. Bd4 {[%clk 0:00:13.1]} 49... Bb5 {[%clk 0:00:04.2]} 50. Be3
{[%clk 0:00:13.6]} 50... Ba6 {[%clk 0:00:04.5]} 51. Bd4 {[%clk 0:00:13.7]} 51...
Bb5 {[%clk 0:00:05]} 52. g4+ {[%clk 0:00:14]} 52... hxg4 {[%clk 0:00:04.9]} 53.
h4 {[%clk 0:00:13.7]} 53... Kf4 {[%clk 0:00:03.3]} 54. Be3+ {[%clk 0:00:13.4]}
54... Kf5 {[%clk 0:00:03.8]} 55. Kg3 {[%clk 0:00:14]} 55... Ba6 {[%clk
0:00:04.2]} 56. h5 {[%clk 0:00:14.3]} 56... Bb5 {[%clk 0:00:03.7]} 57. h6 {[%clk
0:00:14.7]} 57... Kg6 {[%clk 0:00:03.6]} 58. Kxg4 {[%clk 0:00:15.2]} 58... Ba6
{[%clk 0:00:02.9]} 59. Kf4 {[%clk 0:00:14.3]} 59... Bd3 {[%clk 0:00:02.9]} 60.
Ke5 {[%clk 0:00:14.2]} 60... Bc2 {[%clk 0:00:01.6]} 1-0

[Event "*** SCC Grand Prix: Titled Tuesday Blitz"]
[Site "Chess.com"]
[Date "2020.09.08"]
[Round "3"]
[White "GianmarcoVaR"]
[Black "aloe_normansen"]
[Result "1-0"]
[WhiteElo "2559"]
[BlackElo "2352"]
[TimeControl "180+1"]
[EndTime "10:30:22 PDT"]
[Termination "GianmarcoVaR won by resignation"]

1. d4 {[%clk 0:02:59.9]} 1... Nf6 {[%clk 0:02:59.6]} 2. c4 {[%clk 0:02:53.2]}
2... g6 {[%clk 0:02:59.7]} 3. g3 {[%clk 0:02:53.1]} 3... Bg7 {[%clk 0:02:59.5]}
4. Bg2 {[%clk 0:02:53.5]} 4... O-O {[%clk 0:02:59]} 5. Nc3 {[%clk 0:02:53.8]}
5... Nc6 {[%clk 0:02:57.9]} 6. Nf3 {[%clk 0:02:53.9]} 6... d5 {[%clk 0:02:57.5]}
7. cxd5 {[%clk 0:02:54.4]} 7... Nxd5 {[%clk 0:02:58.4]} 8. O-O {[%clk
0:02:54.8]} 8... Nb6 {[%clk 0:02:58.6]} 9. d5 {[%clk 0:02:55.2]} 9... Na5 {[%clk
0:02:58.1]} 10. Qc2 {[%clk 0:02:55.8]} 10... c6 {[%clk 0:02:29.6]} 11. dxc6
{[%clk 0:02:56.7]} 11... Nxc6 {[%clk 0:02:29.6]} 12. Rd1 {[%clk 0:02:57.3]}
12... Qc7 {[%clk 0:02:28.7]} 13. Bf4 {[%clk 0:02:27.3]} 13... e5 {[%clk
0:02:27.5]} 14. Be3 {[%clk 0:02:25.9]} 14... Bf5 {[%clk 0:02:20]} 15. Qc1 {[%clk
0:02:22.3]} 15... Rac8 {[%clk 0:02:11.6]} 16. Nb5 {[%clk 0:02:18.7]} 16... Qb8
{[%clk 0:02:10.2]} 17. Nd6 {[%clk 0:02:17.2]} 17... Nd4 {[%clk 0:02:04.7]} 18.
Nxc8 {[%clk 0:01:48.7]} 18... Nxe2+ {[%clk 0:02:04.2]} 19. Kh1 {[%clk
0:01:43.8]} 19... Nxc1 {[%clk 0:02:05.1]} 20. Ne7+ {[%clk 0:01:43.9]} 20... Kh8
{[%clk 0:02:04.4]} 21. Nxf5 {[%clk 0:01:42.4]} 21... gxf5 {[%clk 0:01:56.7]} 22.
Raxc1 {[%clk 0:01:42.7]} 22... Rc8 {[%clk 0:01:49.1]} 23. Bh3 {[%clk 0:01:32.9]}
23... e4 {[%clk 0:01:40.2]} 24. Bxf5 {[%clk 0:01:31.4]} 24... Re8 {[%clk
0:01:18.9]} 25. Bf4 {[%clk 0:01:24.3]} 25... Be5 {[%clk 0:00:45.6]} 26. Nxe5
{[%clk 0:01:22.7]} 26... Rxe5 {[%clk 0:00:46.5]} 27. Bxe4 {[%clk 0:01:11.9]}
27... Qe8 {[%clk 0:00:43.1]} 28. Bxb7 {[%clk 0:00:37.1]} 28... Re2 {[%clk
0:00:33.7]} 29. Be3 {[%clk 0:00:35.2]} 29... Rxe3 {[%clk 0:00:31.7]} 30. fxe3
{[%clk 0:00:33.9]} 30... Qxe3 {[%clk 0:00:32.6]} 31. Rc2 {[%clk 0:00:25.3]}
31... Kg7 {[%clk 0:00:31.3]} 32. Bg2 {[%clk 0:00:22.3]} 32... Nd7 {[%clk
0:00:27.5]} 33. Rf1 {[%clk 0:00:06.5]} 33... Ne5 {[%clk 0:00:26.5]} 34. Rcf2
{[%clk 0:00:06.7]} 34... Kg6 {[%clk 0:00:19.6]} 35. Rf6+ {[%clk 0:00:06]} 35...
Kg7 {[%clk 0:00:19.2]} 36. R6f5 {[%clk 0:00:05.6]} 36... Qe2 {[%clk 0:00:18.9]}
37. h3 {[%clk 0:00:04.1]} 37... h5 {[%clk 0:00:18.2]} 38. Kh2 {[%clk 0:00:03.3]}
38... h4 {[%clk 0:00:18.1]} 39. gxh4 {[%clk 0:00:03.7]} 39... Qe3 {[%clk
0:00:17.6]} 40. Rg5+ {[%clk 0:00:03.4]} 40... Kf8 {[%clk 0:00:15.9]} 41. Rgf5
{[%clk 0:00:03.6]} 41... Ke7 {[%clk 0:00:15.8]} 42. R1f4 {[%clk 0:00:03.6]}
42... Ke6 {[%clk 0:00:14.3]} 43. Re4 {[%clk 0:00:03.2]} 43... Qc5 {[%clk
0:00:07.7]} 44. Rfxe5+ {[%clk 0:00:03.3]} 44... Qxe5+ {[%clk 0:00:08.6]} 45.
Rxe5+ {[%clk 0:00:04.2]} 45... Kxe5 {[%clk 0:00:09.4]} 46. Kg3 {[%clk
0:00:05.1]} 46... f5 {[%clk 0:00:09.2]} 47. h5 {[%clk 0:00:06]} 47... f4+ {[%clk
0:00:09.8]} 48. Kg4 {[%clk 0:00:06.9]} 48... Kf6 {[%clk 0:00:09.8]} 49. Bf3
{[%clk 0:00:07.8]} 49... a5 {[%clk 0:00:09.7]} 50. b3 {[%clk 0:00:07.3]} 50...
Ke5 {[%clk 0:00:08.9]} 51. Kg5 {[%clk 0:00:07.1]} 51... Kd4 {[%clk 0:00:08.7]}
52. Kxf4 {[%clk 0:00:07.5]} 52... Kc3 {[%clk 0:00:08.2]} 53. h6 {[%clk 0:00:08]}
1-0